bitfinex/quotes_ETHUSD_20250803
["timestamp","ask_amount","ask_price","bid_price","bid_amount"]
[1754184212996,0.001,3419.3,3419.0,0.1464]
[1754184213223,0.001,3419.3,3418.9,3.0]
[1754184213428,0.001,3419.3,3419.2,0.1464]
[1754184213701,0.001,3419.3,3419.2,1.02543]
[1754184216549,0.001,3419.3,3419.2,14.8967123]
[1754184216708,0.001,3419.7,3419.3,3.0]
[1754184216908,0.001,3419.7,3419.5,3.0]
[1754184217308,0.001,3419.7,3419.6,0.55]
[1754184217743,0.001,3419.7,3419.6,0.6964]
[1754184217943,0.001,3419.7,3419.6,1.03157587]
[1754184219454,0.4838,3420.3,3419.6,1.03157587]
[1754184219752,0.4838,3420.3,3419.8,3.0]
[1754184220058,0.4838,3420.3,3420.1,0.1464]
[1754184220360,0.4838,3420.2,3420.1,0.1464]
[1754184220524,0.9334,3420.3,3420.1,0.1464]
[1754184220854,0.4838,3420.2,3420.1,0.1464]
[1754184221149,0.9334,3420.2,3420.1,0.1464]
[1754184221750,0.4838,3420.4,3420.1,0.1464]
[1754184222049,0.9334,3420.3,3420.1,0.1464]
[1754184222444,0.4838,3420.6,3420.1,0.1464]
[1754184222635,0.9334,3420.5,3420.1,0.1464]
[1754184222840,0.9334,3420.5,3419.8,13.3212823]
[1754184222841,0.9334,3420.5,3419.9,0.55]
[1754184223372,0.1464,3420.8,3419.9,0.55]
[1754184223546,0.001,3421.6,3420.3,0.1464]
[1754184223547,0.4838,3420.9,3420.3,0.1464]
[1754184223744,0.4838,3420.9,3420.5,0.1464]
[1754184224039,0.4496,3420.8,3420.5,0.36659605]
[1754184224244,0.9334,3420.7,3420.5,0.1464]
[1754184224476,0.001,3421.2,3420.5,0.1464]
[1754184224477,0.9334,3420.6,3420.5,0.1464]
[1754184224642,0.1464,3420.7,3420.3,4.547]
[1754184224846,0.9334,3420.6,3420.3,3.0]
[1754184225043,0.9334,3420.6,3420.2,4.6934]
[1754184225044,0.9334,3420.5,3420.2,3.1464]
[1754184225292,0.9334,3420.4,3420.2,3.0]
[1754184225588,0.9334,3420.3,3420.2,3.0]
[1754184226178,0.4838,3420.6,3420.2,3.0]
[1754184226378,0.4838,3420.6,3420.4,0.4838]
[1754184226559,0.4838,3420.6,3420.4,0.6302]
[1754184226748,0.9334,3420.5,3420.4,0.4838]
[1754184227278,0.9334,3420.5,3419.7,3.0]
[1754184227460,0.1464,3420.1,3419.7,3.0]
[1754184227787,0.9334,3420.0,3419.7,3.0]
[1754184227961,0.4496,3420.0,3419.7,3.0]
[1754184228160,0.9334,3420.0,3419.7,3.0]
[1754184228576,0.9334,3419.9,3419.1,10.3212823]
[1754184228780,1.0798,3419.8,3419.3,4.6924]
[1754184228980,0.9334,3419.7,3419.6,0.87896]
[1754184232451,0.4873,3420.0,3419.6,0.87896]
[1754184232733,0.4873,3420.5,3420.2,0.1464]
[1754184232939,0.4873,3420.5,3419.8,3.0]
[1754184232940,0.4873,3420.5,3419.9,0.1464]
[1754184233237,0.4873,3420.5,3420.2,0.1464]
[1754184233442,0.1464,3420.7,3420.2,0.1464]
[1754184233650,0.9247,3420.6,3420.2,0.1464]
[1754184233850,0.1464,3420.7,3420.2,0.1464]
[1754184234152,0.1464,3420.8,3420.2,3.0]
[1754184234443,0.1464,3420.8,3420.4,0.1464]
[1754184234834,0.4873,3420.7,3420.4,0.1464]
[1754184235035,0.9247,3420.6,3420.4,0.1464]
[1754184235420,0.4374,3420.6,3420.4,0.1464]
[1754184235622,0.4873,3420.5,3420.4,0.1464]
[1754184236261,0.1464,3421.0,3420.4,0.1464]
[1754184236435,0.4873,3420.8,3420.4,0.1464]
[1754184236622,0.9247,3420.7,3420.4,0.1464]
[1754184236964,0.9247,3420.6,3420.4,0.1464]
[1754184237266,0.9247,3420.5,3420.2,3.0]
[1754184237561,0.1464,3420.7,3420.4,0.878731]
[1754184237742,0.001,3421.2,3419.8,3.0]
[1754184238056,0.1464,3420.3,3419.8,3.1464]
[1754184238218,0.1464,3420.3,3419.9,0.117177]
[1754184238420,0.9247,3420.2,3419.9,0.117177]
[1754184238631,0.001,3421.2,3419.9,0.117177]
[1754184238632,0.1464,3420.0,3419.9,0.117177]
[1754184238865,1.0711,3420.0,3419.9,0.117177]
[1754184240864,1.0711,3420.0,3419.6,0.002]
[1754184241061,0.9247,3419.9,3419.6,0.880962]
[1754184241323,0.4873,3420.4,3419.6,0.880962]
[1754184241923,0.1464,3420.2,3419.7,0.1464]
[1754184242470,0.9247,3420.1,3419.7,0.1464]
[1754184242637,0.9247,3420.0,3419.7,0.1464]
[1754184242843,0.1464,3420.2,3419.6,1.027362]
[1754184243194,0.9247,3419.9,3419.6,1.027362]
[1754184243322,0.1464,3419.7,3419.6,0.002]
[1754184243528,1.0711,3419.7,3419.6,0.002]
[1754184244340,0.001,3420.5,3419.6,0.002]
[1754184244525,0.4873,3420.1,3419.6,0.002]
[1754184244773,1.0711,3420.1,3419.6,0.002]
[1754184244972,1.0711,3420.1,3419.6,0.1484]
[1754184245322,0.5838,3420.1,3419.6,0.1484]
[1754184245617,0.9247,3420.0,3419.6,0.002]
[1754184245816,0.9247,3419.9,3419.6,0.1484]
[1754184246124,0.9247,3420.3,3419.6,0.002]
[1754184246292,0.9247,3420.3,3419.8,0.1464]
[1754184246489,0.001,3420.5,3419.9,3.55]
[1754184246819,0.001,3420.5,3420.3,0.1464]
[1754184247872,0.4883,3420.5,3420.3,0.1464]
[1754184249016,0.4873,3420.4,3420.3,0.1464]
[1754184249910,0.9247,3420.4,3419.9,3.0]
[1754184250117,0.4873,3420.3,3420.1,0.1464]
[1754184252685,0.9247,3420.3,3420.1,0.1464]
[1754184252886,0.9247,3420.2,3419.9,4.544]
[1754184253107,0.9247,3420.1,3419.9,4.6904]
[1754184253321,0.1464,3420.4,3419.9,0.1464]
[1754184253521,0.9247,3420.3,3419.9,0.1464]
[1754184253728,0.4873,3420.2,3419.9,0.1464]
[1754184254329,0.4873,3420.2,3420.1,0.1464]
[1754184255548,0.9247,3420.2,3420.1,0.1464]
[1754184256067,0.9247,3420.2,3420.1,0.6337]
[1754184256214,0.9247,3420.2,3420.1,0.4873]
[1754184256420,1.0711,3420.2,3420.1,0.4873]
[1754184256615,0.9247,3420.2,3420.1,0.4873]
[1754184257045,0.1464,3420.3,3420.1,0.4873]
[1754184257242,0.4873,3420.4,3420.1,0.4873]
[1754184257607,0.9247,3420.4,3420.1,0.4873]
[1754184257803,0.4873,3420.3,3420.1,0.4873]
[1754184258009,0.9247,3420.3,3420.1,0.4873]
[1754184258243,0.4873,3420.2,3420.1,0.4873]
[1754184258742,0.9247,3420.2,3420.1,0.4873]
[1754184259545,0.4873,3420.2,3420.1,0.4873]
[1754184259878,0.1464,3420.3,3420.1,0.4873]
[1754184260085,1.0858,3420.5,3420.1,0.4873]
[1754184260260,0.001,3420.5,3420.2,10.3212823]
[1754184260459,0.001,3420.5,3420.4,0.1464]
[1754184261552,0.001,3420.5,3420.4,0.6964]
[1754184266756,0.001,3420.5,3420.4,10.54195797]
[1754184267192,0.4668,3420.5,3420.4,14.53395797]
[1754184267408,0.9394,3420.5,3420.4,14.53395797]
[1754184267574,0.9394,3420.5,3420.4,14.99975797]
[1754184268192,0.001,3420.5,3420.4,14.99975797]
[1754184269468,0.001,3420.7,3420.4,14.99975797]
[1754184269469,0.001,3420.7,3420.5,3.0]
[1754184269691,0.001,3420.7,3420.6,7.542]
[1754184270266,0.001,3420.7,3420.6,7.6884]
[1754184271406,0.9394,3420.7,3420.6,7.6884]
[1754184271881,0.9394,3420.7,3420.6,8.566989]
[1754184272870,0.001,3420.7,3420.6,8.566989]
[1754184273083,0.4668,3420.7,3420.6,8.566989]
[1754184273285,0.9394,3420.7,3420.6,8.566989]
[1754184274201,0.4668,3420.7,3420.6,8.566989]
[1754184274510,0.001,3420.7,3420.6,8.566989]
[1754184275183,0.4668,3420.7,3420.6,8.566989]
[1754184276579,0.9394,3420.7,3420.6,8.566989]
[1754184278396,0.4668,3420.7,3420.6,8.566989]
[1754184278574,0.001,3420.7,3420.6,8.566989]
[1754184279815,0.001,3420.7,3420.6,4.024989]
[1754184280023,0.9394,3420.7,3420.5,0.21587947]
[1754184280227,0.97494329,3420.6,3419.7,6.84555797]
[1754184280394,0.9384,3420.5,3419.8,4.54]
[1754184280716,0.9384,3420.4,3420.2,3.0]
[1754184281015,0.9384,3420.3,3420.2,3.0]
[1754184281189,0.9384,3420.3,3419.7,6.84555797]
[1754184281394,0.9384,3420.2,3419.9,0.4726]
[1754184281591,0.97494863,3420.1,3419.9,0.4726]
[1754184281906,0.9384,3420.0,3419.8,3.0]
[1754184282123,0.9384,3419.9,3419.6,0.002]
[1754184282293,0.03754222,3420.7,3419.6,0.002]
[1754184282485,0.9384,3419.8,3419.6,0.002]
[1754184282684,0.03754222,3420.7,3419.6,0.002]
[1754184282887,0.9384,3419.7,3419.6,0.002]
[1754184283484,0.4726,3420.1,3419.6,0.002]
[1754184283705,0.4726,3420.1,3420.0,9.84555797]
[1754184284083,0.9384,3420.1,3420.0,9.84555797]
[1754184285525,0.4658,3420.1,3420.0,9.84555797]
[1754184286021,0.9384,3420.1,3420.0,2.5]
[1754184286234,0.9384,3420.1,3419.6,0.002]
[1754184286451,0.9384,3420.0,3419.6,0.002]
[1754184286743,0.9384,3419.9,3419.6,0.002]
[1754184286933,0.55,3420.6,3419.6,0.002]
[1754184287120,0.9384,3419.8,3419.6,0.002]
[1754184287535,0.9384,3419.7,3419.6,0.002]
[1754184287930,0.9384,3419.7,3419.3,0.002]
[1754184288132,0.03654436,3420.5,3419.3,0.002]
[1754184288133,0.9384,3419.6,3419.3,0.002]
[1754184288445,0.03654436,3420.5,3419.3,0.002]
[1754184288659,0.369,3420.4,3419.3,0.002]
[1754184288850,0.4055465,3420.3,3419.3,0.002]
[1754184289158,0.55,3420.2,3419.3,0.002]
[1754184289316,0.03654863,3420.1,3419.3,0.002]
[1754184289515,0.919,3420.0,3419.3,0.002]
[1754184289731,0.40555077,3419.9,3419.3,0.002]
[1754184290156,0.03655077,3419.9,3419.3,0.002]
[1754184290306,0.55,3419.7,3419.3,0.002]
[1754184290640,0.369,3419.6,3419.3,0.002]
[1754184290848,0.40555398,3419.6,3419.3,0.002]
[1754184291027,0.03655398,3419.6,3419.3,0.002]
[1754184291403,4.54,3420.0,3419.3,0.002]
[1754184291644,0.454,3419.9,3419.3,0.002]
[1754184291841,4.541,3419.9,3419.3,0.002]
[1754184292005,3.0,3420.3,3419.3,0.002]
[1754184292209,4.541,3420.2,3419.3,0.002]
[1754184292527,5.091,3420.1,3419.3,0.002]
[1754184292732,0.55,3419.9,3419.3,0.002]
[1754184293048,0.51275497,3419.8,3419.3,0.002]
[1754184293601,4.541,3419.7,3419.3,0.002]
[1754184293808,7.029,3420.4,3419.3,0.002]
[1754184294006,0.55,3420.2,3419.3,0.002]
[1754184294450,0.55,3420.3,3419.3,0.002]
[1754184294606,4.541,3420.1,3419.3,0.002]
[1754184294805,0.5091,3420.0,3419.3,0.002]
[1754184295550,0.03655077,3419.9,3419.3,0.002]
[1754184295912,0.58655077,3419.9,3419.3,0.002]
[1754184296310,0.55,3419.8,3419.3,0.002]
[1754184296522,0.55,3419.6,3419.3,0.002]
[1754184297133,0.55,3419.9,3419.3,0.002]
[1754184297330,1.05501,3419.9,3419.3,0.002]
[1754184298143,0.55,3420.1,3419.3,0.002]
[1754184298344,4.541,3419.8,3419.3,0.002]
[1754184299013,4.541,3419.7,3419.3,0.002]
[1754184300350,3.64,3419.6,3419.3,0.002]
[1754184301157,1.2309101,3419.5,3419.3,0.002]
[1754184301474,0.55,3419.4,3419.3,0.002]
[1754184301633,3.64,3419.4,3419.3,0.002]
[1754184302014,0.55,3419.4,3419.3,0.002]
[1754184302750,4.541,3419.4,3419.3,0.002]
[1754184303451,4.9951,3419.4,3419.3,0.002]
[1754184305150,0.4541,3419.4,3419.3,0.002]
[1754184305350,4.541,3419.4,3419.3,0.002]
[1754184305749,0.55,3419.8,3419.3,0.002]
[1754184306056,4.541,3419.7,3419.3,0.966]
[1754184306361,4.541,3419.7,3419.4,0.964]
[1754184306548,4.541,3419.7,3419.5,0.964]
[1754184306869,0.001,3420.1,3419.6,0.964]
[1754184307156,4.541,3420.0,3419.7,0.964]
[1754184307360,4.9952,3420.0,3419.8,0.964]
[1754184307528,4.9952,3420.0,3419.9,0.5]
[1754184307962,4.9952,3420.0,3419.8,0.464]
[1754184308265,0.4542,3420.0,3419.6,0.5]
[1754184308431,4.541,3419.9,3419.7,0.5]
[1754184308636,4.541,3419.8,3419.7,0.5]
[1754184309352,4.541,3419.8,3419.7,0.964]
[1754184310650,0.001,3420.1,3419.7,0.964]
[1754184310973,4.541,3420.0,3419.8,0.964]
[1754184311178,0.4542,3420.0,3419.9,0.5]
[1754184311361,4.541,3420.0,3419.9,0.5]
[1754184311675,4.541,3420.0,3419.3,0.002]
[1754184313560,0.001,3420.1,3419.4,0.964]
[1754184313774,0.001,3420.1,3419.5,0.964]
[1754184313976,0.001,3420.1,3419.6,0.964]
[1754184314281,0.001,3420.1,3419.7,0.964]
[1754184314481,0.001,3420.1,3419.3,0.002]
[1754184314647,0.001,3420.1,3419.8,0.964]
[1754184314996,0.001,3420.1,3419.9,0.964]
[1754184315138,0.001,3420.1,3419.3,0.002]
[1754184315472,0.001,3420.1,3419.4,0.964]
[1754184315768,0.001,3420.1,3419.5,0.964]
[1754184315967,0.001,3420.1,3419.3,0.002]
[1754184316171,0.001,3420.1,3419.6,0.964]
[1754184316362,0.001,3420.1,3419.3,0.002]
[1754184316669,0.001,3420.1,3419.7,0.964]
[1754184316871,0.001,3420.1,3419.8,0.964]
[1754184317171,0.001,3420.1,3419.9,0.964]
[1754184317576,0.001,3420.1,3420.0,0.964]
[1754184318280,4.541,3420.7,3420.1,0.55]
[1754184318453,4.541,3420.7,3420.2,0.964]
[1754184318648,4.541,3420.7,3420.1,0.55]
[1754184318972,0.001,3420.7,3420.3,0.964]
[1754184319146,0.001,3420.7,3420.4,0.964]
[1754184319546,0.001,3420.7,3420.3,0.77334534]
[1754184319741,0.001,3420.7,3420.5,0.944]
[1754184320177,0.001,3420.7,3420.3,0.22334534]
[1754184320178,0.001,3420.7,3420.6,0.944]
[1754184321110,0.001,3420.7,3420.6,0.4743]
[1754184321310,0.001,3420.7,3420.6,0.944]
[1754184321522,0.46984,3420.7,3420.3,0.22334534]
[1754184321686,0.1464,3420.5,3420.4,0.4743]
[1754184322222,0.1464,3420.5,3420.0,0.1464]
[1754184323089,0.001,3420.7,3420.1,10.30799873]
[1754184323415,0.001,3420.7,3420.4,0.1464]
[1754184323735,0.001,3420.7,3420.6,0.1464]
[1754184324136,0.001,3420.7,3420.6,0.6207]
[1754184324338,0.001,3420.7,3420.6,0.1464]
[1754184324506,0.1474,3420.7,3420.4,0.4743]
[1754184324909,0.1474,3420.7,3420.1,1.0904]
[1754184325219,0.1474,3420.7,3420.2,0.4743]
[1754184325432,0.1474,3420.7,3420.3,0.944]
[1754184325746,0.1474,3420.7,3420.4,0.4743]
[1754184325949,0.1474,3420.7,3420.1,0.1464]
[1754184326104,0.1474,3420.7,3420.4,0.1474]
[1754184326734,0.1474,3420.7,3420.1,0.1464]
[1754184326933,0.001,3420.7,3420.2,0.4666]
[1754184327138,0.1464,3420.5,3420.2,0.4666]
[1754184327914,0.001,3420.7,3420.3,0.944]
[1754184328113,0.001,3420.7,3420.4,0.1464]
[1754184328322,0.001,3420.7,3420.4,1.0904]
[1754184328641,0.001,3420.7,3420.5,0.944]
[1754184329141,0.001,3420.7,3420.5,0.878731]
[1754184329348,0.6014,3420.7,3420.2,0.6207]
[1754184329546,0.1474,3420.7,3420.3,1.822731]
[1754184329701,0.1474,3420.7,3420.3,0.878731]
[1754184329905,0.1474,3420.7,3420.4,0.944]
[1754184330334,0.1474,3420.7,3420.5,0.944]
[1754184330706,0.1474,3420.7,3420.6,0.944]
[1754184331429,0.001,3420.7,3420.6,0.944]
[1754184334524,0.001,3420.7,3420.3,1.353031]
[1754184334719,0.001,3420.7,3420.3,1.025131]
[1754184334916,0.001,3420.7,3420.5,0.4743]
[1754184335923,0.001,3420.7,3420.6,0.944]
[1754184337051,0.001,3420.7,3420.6,1.0904]
[1754184339176,0.001,3420.7,3420.6,1.2378]
[1754184340081,0.001,3420.7,3420.6,1.7878]
[1754184343383,0.001,3420.9,3420.6,1.7878]
[1754184343567,0.001,3420.9,3420.8,13.82875982]
[1754184343770,0.001,3421.1,3420.9,3.55]
[1754184344079,0.001,3421.1,3421.0,0.57923121]
[1754184344381,0.001,3421.1,3421.0,1.6404]
[1754184344771,0.001,3421.1,3421.0,1.66963121]
[1754184345080,0.1464,3421.9,3421.1,0.55]
[1754184345286,0.9281,3422.5,3421.5,0.55]
[1754184345442,0.9281,3422.5,3421.5,3.6964]
[1754184345643,0.9281,3422.5,3421.5,4.6404]
[1754184347748,0.4615,3422.5,3421.5,4.6404]
[1754184347964,4.535,3422.8,3421.5,4.6404]
[1754184347965,0.4666,3422.2,3421.5,4.1707]
[1754184348152,0.9281,3422.1,3421.5,4.1707]
[1754184349747,0.9281,3422.1,3421.5,3.1464]
[1754184349953,0.6033,3422.3,3421.5,4.0411]
[1754184350176,0.57152924,3422.4,3421.5,4.5911]
[1754184350177,0.71792924,3422.4,3421.5,4.5911]
[1754184350485,0.09892924,3422.4,3421.5,5.1944]
[1754184351191,0.001,3422.0,3421.5,5.1944]
[1754184351967,0.001,3422.0,3421.5,1.2997]
[1754184352166,0.001,3422.0,3421.5,2.1944]
[1754184354085,0.4579,3422.0,3421.5,1.2997]
[1754184354293,0.4579,3422.0,3421.5,1.7528]
[1754184354590,0.001,3422.0,3421.5,2.22362694]
[1754184354750,0.001,3422.0,3421.5,2.1944]
[1754184355649,0.001,3422.0,3421.8,0.55]
[1754184355849,0.001,3422.0,3421.9,0.55]
[1754184356093,0.001,3422.0,3421.9,0.6964]
[1754184356451,0.001,3422.0,3421.9,1.5911]
[1754184356686,0.001,3422.0,3421.9,1.81312523]
[1754184357504,0.09892924,3422.4,3421.9,1.81312523]
[1754184357505,0.09892924,3422.4,3422.0,0.55]
[1754184357651,0.09892924,3422.4,3422.3,3.55]
[1754184357857,0.09892924,3422.4,3422.3,4.5911]
[1754184358056,0.09892924,3422.4,3422.3,3.1464]
[1754184358252,0.09892924,3422.4,3422.3,4.1495]
[1754184358671,0.09892924,3422.4,3422.3,1.1495]
[1754184358879,0.09892924,3422.4,3422.3,0.6964]
[1754184359262,0.09892924,3422.4,3422.3,0.1464]
[1754184360595,0.97842924,3422.4,3422.3,0.1464]
[1754184360796,0.97842924,3422.4,3421.9,0.22202523]
[1754184360797,1.12482924,3422.4,3421.9,0.22202523]
[1754184360972,0.1464,3422.1,3421.9,0.22202523]
[1754184361157,0.9295,3422.0,3421.6,0.1136]
[1754184361365,0.1464,3422.1,3421.6,3.08922609]
[1754184361366,0.4569,3421.9,3421.6,3.08922609]
[1754184361572,0.97842924,3422.4,3421.7,0.4531]
[1754184361799,0.97842924,3422.4,3422.0,0.1464]
[1754184361984,0.52152924,3422.4,3422.0,0.1464]
[1754184362180,0.4569,3422.3,3422.0,0.1464]
[1754184362616,0.9295,3422.3,3422.0,0.1464]
[1754184362972,0.04892924,3422.4,3422.0,0.1464]
[1754184363171,0.9295,3422.3,3422.0,0.1464]
[1754184363411,0.9295,3422.2,3421.5,0.82245227]
[1754184363705,0.1464,3422.0,3421.5,0.96885227]
[1754184364108,0.9295,3421.9,3421.5,0.96885227]
[1754184364292,0.9295,3421.8,3421.5,0.96885227]
[1754184364495,0.1464,3422.0,3421.5,0.96885227]
[1754184364682,0.6033,3422.3,3421.6,0.48232609]
[1754184364884,0.6033,3422.3,3421.8,0.1464]
[1754184365073,0.4726,3422.3,3421.9,0.02922353]
[1754184365307,0.4569,3422.3,3421.8,0.1464]
[1754184365502,0.4569,3422.2,3421.8,0.1464]
[1754184365835,0.04892924,3422.4,3421.7,0.878347]
[1754184366038,0.04892924,3422.4,3422.1,0.1464]
[1754184366238,0.04892924,3422.4,3421.8,0.55]
[1754184366538,0.04892924,3422.4,3422.3,0.1464]
[1754184367501,0.50582924,3422.4,3422.3,0.1464]
[1754184367702,0.97842924,3422.4,3422.3,0.1464]
[1754184368738,0.04892924,3422.4,3422.3,0.1464]
[1754184369532,0.50582924,3422.4,3422.3,0.1464]
[1754184369855,0.04892924,3422.4,3422.3,0.1464]
[1754184371075,0.97842924,3422.4,3422.3,0.1464]
[1754184371347,0.97842924,3422.4,3422.3,14.89907993]
[1754184371348,0.04892924,3422.4,3422.3,14.89907993]
[1754184371545,0.4726,3423.4,3422.5,0.55]
[1754184371734,0.4726,3423.4,3422.7,0.55]
[1754184371930,0.4726,3423.4,3423.0,0.1464]
[1754184372332,0.1464,3423.5,3423.0,0.1464]
[1754184372644,0.9295,3423.3,3423.0,0.1464]
[1754184372863,0.9295,3423.2,3423.1,0.55]
[1754184373967,0.9295,3423.2,3422.4,4.531]
[1754184373968,0.9295,3423.2,3422.5,0.55]
[1754184374161,4.531,3424.4,3422.5,0.55]
[1754184374162,0.1464,3423.3,3423.0,0.878109]
[1754184374381,0.9295,3423.1,3423.0,0.878109]
[1754184374868,0.4569,3423.1,3423.0,0.878109]
[1754184375025,0.1464,3423.3,3422.8,0.1464]
[1754184375223,0.1464,3423.3,3423.0,0.878065]
[1754184375464,0.1464,3423.3,3423.0,1.331165]
[1754184375668,0.6033,3423.8,3423.2,0.1464]
[1754184375963,0.6033,3423.8,3423.2,0.86856271]
[1754184376166,0.4726,3423.7,3423.2,0.86856271]
[1754184376340,0.9295,3423.7,3423.2,1.024365]
[1754184376540,0.9295,3423.6,3423.2,1.024365]
[1754184376741,0.4569,3423.5,3423.2,1.024365]
[1754184376936,0.9295,3423.5,3423.2,0.877965]
[1754184377174,0.1464,3423.3,3423.2,0.877965]
[1754184377475,1.0759,3423.3,3423.2,0.877965]
[1754184377629,1.0759,3423.3,3422.8,0.1464]
[1754184377828,0.9295,3423.2,3423.0,0.877965]
[1754184378053,0.9295,3423.1,3423.0,0.877965]
[1754184378759,0.4569,3423.1,3423.0,0.877965]
[1754184379166,0.9295,3423.1,3423.0,0.877965]
[1754184380291,1.0759,3423.1,3422.4,0.1464]
[1754184380468,0.1464,3422.9,3422.4,0.1464]
[1754184380812,0.9024,3422.8,3422.4,0.1464]
[1754184381125,0.9024,3422.7,3422.4,0.1464]
[1754184381279,0.4608,3422.7,3422.4,0.1464]
[1754184381474,0.1464,3422.9,3422.4,0.1464]
[1754184381799,0.9024,3422.8,3422.4,0.1464]
[1754184382012,0.1464,3422.9,3422.4,0.1464]
[1754184382189,0.9024,3422.7,3422.4,0.1464]
[1754184382576,0.4608,3422.7,3422.4,0.1464]
[1754184382792,0.1464,3422.9,3422.4,0.1464]
[1754184383087,0.6072,3422.9,3422.4,0.1464]
[1754184383415,0.9024,3422.8,3422.4,0.1464]
[1754184383713,0.70428,3422.9,3422.4,0.1464]
[1754184383714,0.9024,3422.7,3422.4,0.1464]
[1754184383914,0.9024,3422.7,3421.2,2.92293603]
[1754184383915,0.9024,3422.7,3421.7,3.0]
[1754184384128,0.55788,3422.9,3421.5,0.93548771]
[1754184384129,0.9024,3422.6,3421.5,0.93548771]
[1754184384328,4.53,3423.1,3421.5,0.93548771]
[1754184384329,0.1464,3422.1,3421.6,0.1464]
[1754184384837,0.9024,3422.0,3421.6,0.1464]
[1754184385140,0.9024,3421.9,3421.6,0.1464]
[1754184385292,0.4608,3421.8,3421.6,0.1464]
[1754184385885,0.508788,3422.8,3421.5,0.94492354]
[1754184386090,0.9024,3421.7,3421.5,0.1464]
[1754184386322,0.1464,3421.9,3421.4,0.1464]
[1754184386323,0.9024,3421.6,3421.4,0.1464]
[1754184386524,0.9024,3421.6,3420.6,4.9902]
[1754184386525,0.1464,3421.9,3421.3,0.1464]
[1754184386739,0.9024,3421.5,3421.3,0.1464]
[1754184386917,5.4314,3421.8,3421.3,0.1464]
[1754184387104,4.529,3421.8,3421.3,0.1464]
[1754184387307,0.9024,3421.7,3421.3,0.1464]
[1754184387508,0.9024,3421.6,3421.3,0.1464]
[1754184388717,0.4416,3421.5,3421.3,0.1464]
[1754184388890,0.9024,3421.5,3421.3,0.1464]
[1754184389097,0.4416,3421.4,3421.3,0.1464]
[1754184389407,0.4416,3421.4,3420.8,0.4602]
[1754184389408,0.9024,3421.4,3421.2,0.1464]
[1754184389605,0.4416,3421.3,3421.2,0.1464]
[1754184391029,0.1464,3421.7,3421.2,0.1464]
[1754184391231,1.1556,3424.3,3421.7,3.0]
[1754184391533,0.4608,3422.7,3422.1,0.1464]
[1754184391736,0.6072,3422.7,3422.1,0.1464]
[1754184392307,4.53,3422.6,3422.1,0.1464]
[1754184392515,0.1464,3422.7,3422.1,0.1464]
[1754184392693,0.1464,3422.7,3421.7,3.0]
[1754184392694,4.53,3422.6,3422.3,0.1464]
[1754184393116,4.9716,3422.6,3422.3,0.1464]
[1754184394123,4.9706,3422.6,3422.3,0.1464]
[1754184394318,0.6072,3422.8,3422.3,0.1464]
[1754184394640,0.001,3423.6,3422.3,0.1464]
[1754184394641,4.529,3422.7,3422.5,0.1464]
[1754184395398,0.588,3423.0,3422.5,0.1464]
[1754184395623,4.529,3422.9,3422.5,0.1464]
[1754184395852,4.9706,3422.9,3422.5,0.1464]
[1754184396315,5.4314,3422.9,3422.5,0.1464]
[1754184396943,0.9024,3422.8,3421.9,0.87817]
[1754184397243,0.9024,3422.7,3422.4,0.1464]
[1754184397597,0.9024,3422.6,3422.4,0.1464]
[1754184398236,0.9024,3422.5,3422.4,0.1464]
[1754184399175,0.588,3423.0,3422.4,0.1464]
[1754184399333,4.6754,3423.0,3422.5,0.0292184]
[1754184399661,4.6754,3423.0,3422.4,3.6066]
[1754184399861,4.529,3423.0,3422.4,3.4602]
[1754184400067,0.9024,3423.2,3422.8,0.1464]
[1754184400432,4.529,3423.3,3423.0,0.1464]
[1754184400742,4.529,3423.4,3423.0,0.1464]
[1754184400940,4.9706,3423.3,3423.0,0.1464]
[1754184401466,0.4416,3423.2,3423.0,0.1464]
[1754184401646,0.9024,3423.1,3423.0,0.1464]
[1754184401847,0.4416,3423.1,3423.0,0.1464]
[1754184402961,0.4426,3423.6,3423.0,0.1464]
[1754184403161,4.9706,3423.6,3423.3,0.1464]
[1754184403340,0.9024,3423.5,3423.3,0.1464]
[1754184403835,0.4416,3423.4,3423.3,0.1464]
[1754184404042,0.9024,3423.4,3423.3,0.1464]
[1754184404736,4.529,3423.6,3423.3,0.1464]
[1754184405072,4.529,3423.6,3423.3,0.6066]
[1754184405073,0.001,3423.6,3423.3,0.6066]
[1754184405235,0.001,3423.6,3423.0,3.0]
[1754184405571,0.001,3423.6,3423.4,0.4602]
[1754184405874,0.001,3423.6,3423.5,0.1464]
[1754184406284,0.001,3423.6,3423.5,14.65258317]
[1754184406465,0.001,3423.6,3423.5,14.43535982]
[1754184407135,0.001,3423.6,3423.5,17.35634711]
[1754184407335,0.001,3423.6,3423.5,13.97515982]
[1754184407534,0.001,3423.6,3423.5,14.43535982]
[1754184408377,0.001,3423.6,3423.5,3.1464]
[1754184409274,0.001,3423.6,3423.5,13.88535982]
[1754184409639,0.001,3423.6,3423.5,14.65113473]
[1754184409835,0.001,3424.0,3423.6,3.55]